bitfinex/quotes_ETHUSD_20211001
["timestamp","ask_amount","ask_price","bid_price","bid_amount"]
[1633051555511,0.53000871,3010.7,3010.4,0.012]
[1633051555912,3.85248871,3010.7,3010.4,0.012]
[1633051556114,3.32248,3010.7,3010.5,0.2599599]
[1633051556312,3.93214848,3010.7,3010.5,0.2599599]
[1633051556513,3.93214848,3010.7,3010.6,0.009]
[1633051556712,3.93214848,3010.7,3010.5,0.2219599]
[1633051557516,3.32248,3010.7,3010.5,0.2219599]
[1633051557712,0.5410811,3010.6,3010.5,0.2219599]
[1633051558114,0.51432342,3010.6,3010.5,0.2219599]
[1633051558313,3.32248,3010.7,3010.5,0.2219599]
[1633051558513,0.52180862,3010.6,3010.5,0.003]
[1633051558712,0.56941231,3010.6,3010.5,0.003]
[1633051558912,0.04760369,3010.6,3010.2,0.003]
[1633051559112,0.54763218,3010.6,3010.2,0.003]
[1633051559313,3.87024218,3010.6,3010.2,0.003]
[1633051559512,0.54763218,3010.6,3010.2,0.003]
[1633051560313,0.04760369,3010.6,3010.2,0.003]
[1633051560914,0.63774609,3010.6,3010.2,0.003]
[1633051561615,0.5901424,3010.6,3010.3,0.23950517]
[1633051562016,1.83864238,3010.9,3010.3,0.23950517]
[1633051562215,2.2832954,3010.9,3010.3,0.23950517]
[1633051562816,3.32254,3010.7,3010.3,0.23950517]
[1633051563429,0.60065889,3010.6,3010.3,0.23950517]
[1633051563620,0.003,3011.0,3010.9,8.78228585]
[1633051563821,0.003,3011.0,3010.9,11.9017629]
[1633051564021,0.003,3011.0,3010.9,11.27615742]
[1633051564221,0.05969151,3011.0,3010.9,11.27615742]
[1633051564421,0.003,3011.5,3011.0,0.05650849]
[1633051564620,0.003,3011.5,3011.2,1.294]
[1633051564821,0.003,3011.5,3011.3,0.2]
[1633051565021,0.003,3012.0,3011.4,1.56233917]
[1633051565224,0.003,3012.0,3011.5,3.1883038]
[1633051565421,0.003,3012.0,3011.6,1.93968864]
[1633051565620,0.003,3012.0,3011.7,0.2]
[1633051565821,0.003,3012.0,3011.9,20.52452]
[1633051566020,0.003,3012.0,3011.9,12.78869799]
[1633051566220,0.003,3012.0,3011.9,20.78869799]
[1633051566824,0.003,3012.0,3011.9,22.08269799]
[1633051568225,0.003,3012.0,3011.9,20.46852]
[1633051568823,0.003,3012.0,3011.9,19.17452]
[1633051569224,0.003,3012.0,3011.9,22.47172586]
[1633051569624,0.03155974,3012.0,3011.9,22.47172586]
[1633051569826,0.04186217,3012.0,3011.9,22.47172586]
[1633051570830,0.04186217,3012.0,3011.9,19.17452]
[1633051571027,0.04186217,3012.0,3011.9,14.195]
[1633051571226,0.04186217,3012.0,3011.9,15.489]
[1633051572230,0.04186217,3012.0,3011.9,20.46776]
[1633051572427,0.04186217,3012.0,3011.9,21.93783141]
[1633051572628,0.01330243,3012.0,3011.9,21.93783141]
[1633051573831,0.01330243,3012.0,3011.9,19.17376]
[1633051574030,0.01330243,3012.0,3011.9,11.46776]
[1633051574930,0.01330243,3012.0,3011.9,13.242812]
[1633051575132,0.04185253,3012.0,3011.9,13.242812]
[1633051575330,0.04185253,3012.0,3011.9,22.242812]
[1633051576531,0.04185253,3012.0,3011.9,19.17376]
[1633051576732,0.04185253,3012.0,3011.9,20.46776]
[1633051576934,0.04185253,3012.0,3011.9,10.17376]
[1633051578135,0.003,3012.5,3012.0,0.02844747]
[1633051578331,0.003,3012.5,3012.4,0.062591]
[1633051578531,0.003,3012.5,3012.4,1.262591]
[1633051578934,0.003,3012.5,3012.4,2.17893885]
[1633051579134,0.003,3012.5,3012.4,6.17836]
[1633051580534,0.02100046,3012.5,3012.4,6.17836]
[1633051583038,0.02100046,3012.5,3012.4,0.2]
[1633051583640,0.003,3012.5,3012.4,0.46834973]
[1633051583838,1.85224304,3012.5,3012.4,0.46834973]
[1633051584639,3.14624304,3012.5,3012.4,0.46834973]
[1633051584838,1.85224304,3012.5,3012.4,0.46834973]
[1633051585638,3.96297962,3012.5,3012.4,0.46834973]
[1633051585842,1.85224304,3012.5,3012.4,0.46834973]
[1633051586040,0.003,3012.5,3012.4,0.2]
[1633051586241,0.02100045,3012.5,3012.4,0.2]
[1633051587038,0.87979049,3012.5,3012.4,0.2]
[1633051587439,2.17379049,3012.5,3012.4,0.2]
[1633051587640,2.17379049,3012.5,3011.8,0.2]
[1633051587641,3.54639049,3012.5,3011.8,0.2]
[1633051587844,2.70877511,3012.5,3011.8,0.2]
[1633051588241,3.32073,3012.3,3011.8,0.2]
[1633051588741,0.91768271,3011.9,3011.8,0.2]
[1633051588941,0.91768271,3011.9,3011.5,0.003]
[1633051589142,0.44651982,3011.8,3011.5,0.003]
[1633051589341,1.68271982,3011.8,3011.5,0.003]
[1633051589542,1.294,3011.7,3011.5,0.003]
[1633051589743,1.68271982,3011.8,3011.5,0.003]
[1633051589941,6.46999747,3011.7,3011.5,0.003]
[1633051590142,10.44226607,3011.7,3011.5,0.003]
[1633051590341,1.0,3011.6,3011.0,0.006]
[1633051590541,0.026371,3011.5,3011.0,0.006]
[1633051590740,1.294,3011.3,3011.0,0.006]
[1633051590942,3.32208,3011.3,3011.0,0.006]
[1633051591145,7.36608923,3011.2,3011.0,0.006]
[1633051591344,7.95990638,3011.2,3011.0,0.006]
[1633051591540,7.38409743,3011.2,3011.0,0.006]
[1633051591740,7.93671561,3011.2,3011.0,0.006]
[1633051591940,1.294,3011.1,3011.0,0.006]
[1633051592142,2.9295,3011.1,3011.0,0.006]
[1633051592942,1.6355,3011.1,3011.0,0.006]
[1633051593145,0.0180082,3011.2,3011.0,0.006]
[1633051593943,0.87661467,3011.2,3011.0,0.006]
[1633051594342,1.96258713,3011.1,3011.0,0.006]
[1633051594542,1.91258713,3011.1,3011.0,0.006]
[1633051594942,1.42468002,3011.2,3011.0,0.006]
[1633051595343,1.46603044,3011.2,3011.0,0.006]
[1633051595744,0.85860647,3011.2,3011.0,0.006]
[1633051595944,1.45620811,3011.1,3011.0,0.006]
[1633051596145,1.403254,3011.2,3011.0,0.006]
[1633051596545,0.85860647,3011.2,3011.0,0.006]
[1633051596744,6.45592777,3011.2,3011.0,0.006]
[1633051596944,0.01800849,3011.1,3011.0,0.006]
[1633051597146,1.58106567,3011.1,3011.0,0.006]
[1633051598546,0.01800849,3011.1,3011.0,0.006]
[1633051599949,0.01800849,3011.1,3010.5,0.203]
[1633051599950,5.77880402,3011.1,3010.5,0.203]
[1633051600148,5.77880402,3011.1,3010.5,0.003]
[1633051600149,3.91810997,3011.0,3010.5,0.003]
[1633051600550,3.91810997,3011.0,3010.2,0.003]
[1633051600948,0.86996211,3010.7,3010.2,0.003]
[1633051601149,1.46688013,3010.5,3010.2,0.003]
[1633051602411,0.01801266,3010.5,3010.2,0.003]
[1633051602550,0.01801266,3010.5,3010.2,4.9859]
[1633051602948,0.01801266,3010.5,3010.3,0.003]
[1633051603351,1.6302918,3010.5,3010.2,0.003]
[1633051603549,0.01801266,3010.5,3010.2,0.003]
[1633051605414,0.01801266,3010.5,3010.2,4.98581]
[1633051605553,4.32820298,3010.9,3010.2,4.98581]
[1633051605554,3.3224,3010.9,3010.2,4.98581]
[1633051605757,3.91586211,3010.9,3010.3,1.27195903]
[1633051605956,3.91586211,3010.9,3010.3,0.27195903]
[1633051606154,3.91586211,3010.9,3010.4,0.003]
[1633051606554,1.89578348,3010.8,3010.4,0.003]
[1633051606757,3.91586211,3010.9,3010.5,1.06157508]
[1633051606954,14.52122,3011.4,3010.5,1.06157508]
[1633051607154,3.77150176,3011.4,3010.7,0.05337]
[1633051607357,3.77150176,3011.4,3010.8,0.2]
[1633051607755,1.62248966,3010.9,3010.8,0.2]
[1633051608554,4.25123749,3011.0,3010.8,0.2]
[1633051608754,0.92947749,3011.0,3010.8,0.2]
[1633051609154,0.01800846,3011.3,3010.8,0.2]
[1633051610155,2.58523422,3011.1,3010.8,0.2]
[1633051610557,0.96652465,3011.1,3010.8,0.2]
[1633051610956,3.33955846,3011.3,3010.8,0.2]
[1633051611156,3.32155,3011.3,3010.8,0.2]
[1633051611420,3.32155,3011.3,3010.9,0.26879548]
[1633051611558,1.61923078,3011.1,3011.0,0.2]
[1633051611962,2.43811488,3011.1,3011.0,0.2]
[1633051612358,3.73211488,3011.1,3011.0,0.2]
[1633051612558,3.73211488,3011.1,3010.9,0.26879548]
[1633051612559,12.55759913,3011.1,3010.9,0.26879548]
[1633051612760,4.98356,3011.0,3010.9,0.26879548]
[1633051612959,36.51221866,3011.0,3010.9,0.26879548]
[1633051613358,3.32247,3010.7,3010.3,0.003]
[1633051613762,0.6155566,3010.6,3009.9,0.006]
[1633051614160,0.6155566,3010.6,3010.0,1.52881771]
[1633051614424,0.6155566,3010.6,3009.9,0.006]
[1633051614565,0.6155566,3010.6,3010.1,0.89807165]
[1633051614961,0.6155566,3010.6,3010.2,0.003]
[1633051615360,2.58139785,3010.6,3010.2,0.003]
[1633051615960,3.32242,3010.5,3010.2,0.003]
[1633051616363,1.42875541,3010.3,3010.2,0.003]
[1633051616562,0.57275786,3010.3,3010.2,0.003]
[1633051617563,0.57275786,3010.3,3010.0,0.006]
[1633051618364,1.61338238,3010.1,3010.0,0.006]
[1633051618564,0.54122324,3010.3,3010.0,0.006]
[1633051618963,3.32242,3010.5,3010.0,0.006]
[1633051618964,0.01801471,3010.1,3010.0,0.006]
[1633051619767,0.01801471,3010.1,3010.0,0.9939048]
[1633051619964,0.01801471,3010.1,3010.0,1.1939048]
[1633051620423,0.01801471,3010.1,3010.0,6.1771748]
[1633051620967,0.01801471,3010.1,3010.0,5.18927]
[1633051621768,0.01801471,3010.1,3010.0,0.206]
[1633051621969,0.82859099,3010.1,3010.0,0.206]
[1633051622168,0.81057628,3010.1,3010.0,0.47506314]
[1633051622370,3.76492421,3010.5,3010.0,0.47506314]
[1633051622770,3.76492421,3010.5,3010.1,0.003]
[1633051623424,4.59119887,3010.5,3010.1,0.003]
[1633051623569,0.65398194,3010.3,3010.1,0.003]
[1633051623970,3.32277,3010.2,3010.1,0.003]
[1633051624169,3.3407838,3010.2,3010.1,0.003]
[1633051624771,8.3252538,3010.2,3010.1,0.003]
[1633051624971,9.78304142,3010.2,3010.1,0.003]
[1633051625170,3.32295,3010.1,3009.7,0.006]
[1633051627376,3.32295,3010.1,3009.7,4.98987]
[1633051627574,3.32295,3010.1,3009.7,5.82765431]
[1633051627772,3.32295,3010.1,3009.8,0.26193863]
[1633051628172,3.32295,3010.1,3009.9,0.006]
[1633051629772,0.02289115,3010.0,3009.9,0.006]
[1633051629977,0.02289115,3010.0,3009.8,0.006]
[1633051630175,0.02289115,3010.0,3009.8,4.98987]
[1633051630574,0.02289115,3010.0,3009.9,0.206]
[1633051630774,1.81294416,3010.5,3010.0,10.55]
[1633051630978,11.8104,3011.2,3010.4,0.055027]
[1633051631178,1.43398609,3011.5,3010.9,0.8469]
[1633051631179,2.32956724,3011.5,3010.9,0.8469]
[1633051631376,2.32956724,3011.5,3011.0,0.2]
[1633051631581,3.32131,3011.4,3011.0,0.2]
[1633051631876,6.64282,3011.4,3011.0,0.2]
[1633051633278,6.64282,3011.4,3011.1,0.26700329]
[1633051633476,4.98284,3011.2,3011.1,0.26700329]
[1633051633677,6.64282,3011.4,3011.1,0.26700329]
[1633051634779,4.9825,3011.3,3011.1,0.26700329]
[1633051634977,5.6240818,3011.3,3011.1,0.26700329]
[1633051635179,0.65958928,3011.3,3010.8,0.2]
[1633051635581,0.65958928,3011.3,3010.3,0.003]
[1633051635582,0.65958928,3011.3,3010.4,0.2]
[1633051635782,0.83553521,3010.9,3010.4,0.2]
[1633051635985,0.83553521,3010.9,3010.5,0.003]
[1633051636181,3.32222,3010.7,3010.5,0.003]
[1633051636380,0.01800748,3011.3,3010.5,0.003]
[1633051637181,0.86753775,3011.3,3010.5,0.003]
[1633051637583,1.87588772,3011.0,3010.5,4.98563]
[1633051638783,3.32167,3011.2,3010.6,0.26713511]
[1633051638986,3.32167,3011.2,3010.7,4.98233]
[1633051639585,3.32167,3011.2,3010.6,0.26713511]
[1633051639984,3.91264268,3011.2,3010.6,0.26713511]
[1633051640187,8.89542268,3011.2,3010.6,0.26713511]
[1633051640585,0.01800956,3011.1,3010.5,4.9856]
[1633051640785,3.32197,3011.0,3010.5,0.003]
[1633051641185,3.7659,3011.0,3010.5,0.003]
[1633051642185,1.48413309,3010.6,3010.5,0.003]
[1633051642387,3.7659,3011.0,3010.5,0.003]
[1633051642587,3.32197,3011.0,3010.5,0.003]
[1633051642987,3.32204,3010.8,3010.5,0.003]
[1633051643186,4.98356,3010.7,3010.5,0.003]
[1633051643385,4.23965587,3010.8,3010.5,0.003]
[1633051643587,3.32235,3010.7,3010.5,0.003]
[1633051644191,0.54233764,3011.2,3010.6,0.26717906]
[1633051644448,2.25358908,3011.3,3010.6,0.26717906]
[1633051644587,1.73876784,3011.3,3010.8,0.86691054]
[1633051644789,1.73876784,3011.3,3010.8,0.86173977]
[1633051645187,1.73876784,3011.3,3010.6,0.21717906]
[1633051645389,1.294,3011.0,3010.8,0.2]
[1633051645592,3.32189,3011.2,3010.6,0.21717906]
[1633051645787,6.0,3011.1,3010.6,0.21717906]
[1633051645988,0.52994442,3011.0,3010.6,0.21717906]
[1633051646189,0.83676851,3010.9,3010.4,0.003]
[1633051646990,3.32273,3010.5,3010.0,0.006]
[1633051647196,4.98409,3010.3,3010.0,0.006]
[1633051647392,3.32273,3010.5,3010.0,0.006]
[1633051647592,0.87114936,3010.4,3010.0,0.006]
[1633051647794,0.45557961,3010.3,3010.0,0.006]
[1633051648392,1.7049706,3010.2,3010.0,0.006]
[1633051649193,1.294,3010.1,3010.0,0.006]
[1633051649493,1.79251151,3010.1,3009.6,0.006]
[1633051649697,3.5222706,3010.2,3010.0,0.24234024]
[1633051649893,2.30166279,3010.2,3010.0,0.24234024]
[1633051650093,2.30166279,3010.2,3010.1,0.003]
[1633051650293,3.59566279,3010.2,3010.1,0.003]
[1633051650493,0.59669219,3010.2,3010.1,0.003]
[1633051650699,3.32273,3010.3,3010.1,0.003]
[1633051650896,3.87986891,3010.3,3010.1,0.003]
[1633051651695,1.74388149,3010.2,3010.1,0.003]
[1633051651895,7.26332418,3010.2,3010.1,0.003]
[1633051652095,2.27879418,3010.2,3009.8,0.006]
[1633051652696,3.03117207,3010.2,3009.8,0.006]
[1633051653498,2.27879418,3010.2,3009.8,0.006]
[1633051654497,3.02840449,3010.2,3009.8,0.006]
[1633051655097,2.99191676,3010.2,3009.9,0.2423549]
[1633051655498,2.99191676,3010.2,3010.0,0.006]
[1633051656297,4.98472,3010.1,3010.0,0.006]
[1633051657197,0.65318429,3010.1,3010.0,0.006]
[1633051657399,0.03645817,3010.1,3010.0,0.006]
[1633051657597,0.03645817,3010.1,3009.5,0.00693188]
[1633051657598,5.02125817,3010.1,3009.5,0.00693188]
[1633051657798,5.66812771,3010.1,3009.5,0.00693188]
[1633051657998,0.90370583,3009.7,3009.5,0.00693188]
[1633051658197,0.03645817,3010.1,3009.5,0.00693188]
[1633051658398,1.56152529,3009.6,3009.5,0.00693188]
[1633051660401,2.43454244,3009.6,3009.5,0.00693188]
[1633051660801,2.43454244,3009.6,3009.5,0.2494187]
[1633051662502,2.43454244,3009.6,3009.5,0.00693188]
[1633051662702,2.47090086,3009.6,3009.5,0.00693188]
[1633051663502,1.10937557,3009.6,3009.5,0.00693188]
[1633051664504,22.39837557,3009.6,3009.5,0.00693188]
[1633051664702,22.39837557,3009.6,3009.4,0.006]
[1633051664703,10.55296812,3009.5,3009.4,0.006]
[1633051664902,6.7,3009.4,3009.3,0.006]
[1633051665102,16.62782621,3009.4,3009.3,0.006]
[1633051665302,7.45,3009.3,3009.2,0.006]
[1633051665505,14.939,3009.3,3009.2,0.006]
[1633051665703,23.99557953,3009.3,3009.2,0.006]
[1633051665904,24.02218647,3009.3,3009.2,0.006]
[1633051666306,24.02218647,3009.3,3009.2,0.24857479]
[1633051666307,24.04342885,3009.3,3009.2,0.24857479]
[1633051666706,23.489,3009.3,3009.2,0.24857479]
[1633051667304,24.03277653,3009.3,3009.2,0.24857479]
[1633051667505,24.11172831,3009.3,3009.2,0.24857479]
[1633051667706,24.11172831,3009.3,3009.2,0.19857479]
[1633051668104,23.54729876,3009.3,3009.1,0.006]
[1633051668304,5.995,3009.2,3009.1,0.006]
[1633051668505,12.47567,3009.2,3009.1,0.006]
[1633051671707,22.47567,3009.2,3009.1,0.22660412]
[1633051673107,12.47567,3009.2,3009.1,0.22660412]
[1633051673506,19.47567,3009.2,3009.1,0.22660412]
[1633051673711,19.47567,3009.2,3009.1,0.006]
[1633051673712,19.53394921,3009.2,3009.1,0.006]
[1633051674510,15.53394921,3009.2,3009.1,0.006]
[1633051674709,18.53394921,3009.2,3009.1,0.006]
[1633051676511,11.53394921,3009.2,3009.1,0.006]
[1633051677210,11.47567,3009.2,3009.1,0.006]
[1633051677468,11.47567,3009.2,3009.1,0.22660412]
[1633051677610,11.47567,3009.2,3009.1,0.17660412]
[1633051679209,7.37289949,3009.1,3008.5,0.009]
[1633051679411,8.11136174,3009.1,3008.5,0.009]
[1633051679610,9.40536174,3009.1,3008.5,0.009]
[1633051681414,0.73846225,3009.1,3008.5,0.009]
[1633051681612,3.40502973,3009.2,3009.0,0.053293]
[1633051681613,0.08027973,3009.2,3009.0,0.053293]
[1633051681814,0.08027973,3009.2,3009.0,1.728893]
[1633051682413,0.08027973,3009.2,3009.1,0.96352009]
[1633051682611,3.32475,3009.3,3009.1,2.25752009]
[1633051682823,3.32475,3009.3,3009.1,2.14896624]
[1633051683011,3.32475,3009.3,3009.1,7.13353624]
[1633051683211,0.003,3009.5,3009.1,7.13353624]
[1633051683412,0.56092582,3009.5,3009.1,6.17001615]
[1633051683612,0.56092582,3009.5,3009.1,1.18544615]
[1633051683812,0.56092582,3009.5,3009.1,1.13544615]
[1633051684211,0.56092582,3009.5,3009.1,6.12031615]
[1633051684411,2.4826417,3009.5,3009.2,0.91510913]
[1633051684616,0.08931984,3009.4,3009.2,0.91510913]
[1633051684811,0.08931984,3009.4,3009.2,3.7813879]
[1633051685012,0.08931984,3009.4,3009.3,11.794]
[1633051685212,0.003,3010.0,3009.4,10.5]
[1633051685412,0.003,3010.0,3009.8,0.05401]
[1633051685614,0.003,3010.0,3009.8,1.44311]
[1633051686474,0.003,3010.0,3009.8,1.3891]
[1633051686816,1.89256725,3009.9,3009.8,1.3891]
[1633051687219,2.44037414,3009.9,3009.8,1.3891]
[1633051687417,0.76087755,3009.7,3009.2,1.2]
[1633051687817,1.37043397,3009.7,3009.2,1.2]
[1633051688018,1.37043397,3009.7,3009.4,4.98453]
[1633051688619,0.60955642,3009.7,3009.4,4.98453]
[1633051688817,5.21564725,3009.9,3009.4,6.27243]
[1633051689020,0.53218707,3009.8,3009.4,6.27243]
[1633051689827,0.53218707,3009.8,3009.4,7.09025326]
[1633051690024,0.003,3010.0,3009.4,7.09025326]
[1633051690222,0.0447197,3009.7,3009.4,7.09025326]
[1633051691024,0.0447197,3009.7,3009.4,6.27243]
[1633051693632,0.59873589,3009.9,3009.4,6.27243]
[1633051693829,0.59873589,3009.9,3009.6,4.98395]
[1633051695230,0.003,3010.0,3009.7,1.347043]
[1633051695493,0.003,3010.0,3009.8,1.63938028]
[1633051695631,0.04475972,3009.8,3009.7,1.053043]
[1633051695833,0.04475972,3009.8,3009.7,0.053043]
[1633051696232,0.04475972,3009.8,3009.7,1.347043]
[1633051696432,0.04475972,3009.8,3009.7,2.347043]
[1633051696634,0.04475972,3009.8,3009.7,2.85013774]
[1633051697434,0.04475972,3009.8,3009.7,17.49464774]
[1633051698836,0.04475972,3009.8,3009.7,7.697553]
[1633051699040,0.003,3010.0,3009.8,10.39475972]
[1633051699237,0.003,3010.0,3009.9,13.72571156]
[1633051699438,0.003,3010.0,3009.9,18.7]
[1633051699636,0.003,3010.5,3009.9,26.34255]
[1633051699837,0.003,3010.5,3010.3,0.053909]
[1633051700037,0.003,3011.5,3010.4,13.47822438]
[1633051700241,0.003,3011.5,3010.9,10.559647]
[1633051700438,0.003,3011.5,3010.9,0.259647]
[1633051700636,0.003,3011.5,3010.9,9.259647]
[1633051700836,0.003,3011.5,3010.9,9.899347]
[1633051701036,0.003,3011.5,3010.9,11.193347]
[1633051701037,0.9375133,3011.5,3010.9,11.193347]
[1633051701238,80.02560744,3011.0,3010.9,16.173797]
[1633051701437,80.02560744,3011.0,3010.6,6.64098]
[1633051701839,80.02560744,3011.0,3010.7,1.0]
[1633051702237,80.02560744,3011.0,3010.8,6.2758]
[1633051702440,80.02560744,3011.0,3010.9,6.3]
[1633051702639,80.02560744,3011.0,3010.9,1.0]
[1633051703239,80.02560744,3011.0,3010.9,2.294]
[1633051703438,80.02560744,3011.0,3010.9,1.0]
[1633051704497,80.02560744,3011.0,3010.9,6.25]
[1633051704640,80.003,3011.0,3010.9,1.25195176]
[1633051705642,80.003,3011.0,3010.9,2.54595176]
[1633051705843,80.003,3011.0,3010.9,9.25195176]
[1633051706043,80.003,3011.0,3010.9,1.25195176]
[1633051706643,80.02560794,3011.0,3010.9,1.0]
[1633051707244,80.02560794,3011.0,3010.9,2.294]
[1633051707444,80.02560794,3011.0,3010.9,1.0]
[1633051708443,80.02560794,3011.0,3010.9,4.85]
[1633051708645,80.79826031,3011.0,3010.9,1.0]
[1633051708846,1.95757627,3010.9,3010.8,4.9818]
[1633051709044,80.02560794,3011.0,3010.8,5.9818]
[1633051709244,80.02560794,3011.0,3010.8,4.9818]
[1633051709444,80.02560794,3011.0,3010.9,1.0]
[1633051710244,80.003,3011.0,3010.9,1.25195176]
[1633051712245,80.003,3011.0,3010.9,1.0]
[1633051712246,80.02560845,3011.0,3010.9,1.0]
[1633051715755,80.003,3011.0,3010.9,1.25195176]
[1633051717749,80.02560896,3011.0,3010.9,1.0]
[1633051719953,59.76630774,3011.0,3010.9,12.844]
[1633051720155,59.76630774,3011.0,3010.9,16.93743657]
[1633051720156,25.0589458,3011.0,3010.9,16.93743657]
[1633051720353,25.0589458,3011.0,3010.9,14.108641]
[1633051720759,0.003,3011.5,3011.0,14.2032542]
[1633051720955,0.003,3011.5,3011.4,0.057334]
[1633051721159,0.003,3011.5,3011.4,0.2]
[1633051721555,0.003,3011.5,3011.2,6.6395]
[1633051721756,0.003,3011.5,3011.0,11.2446]
[1633051721956,0.003,3011.5,3010.4,0.203]
[1633051722156,1.99200268,3011.0,3010.4,0.203]
[1633051722355,1.99200268,3011.0,3010.4,0.003]
[1633051722356,2.47832914,3011.0,3010.4,0.003]
[1633051722616,3.77232914,3011.0,3010.5,0.003]
[1633051723215,3.79033817,3011.0,3010.5,0.003]
[1633051723415,3.32223,3010.8,3010.5,0.003]
[1633051723615,0.72397735,3010.6,3010.2,0.003]
[1633051723817,1.71917919,3010.3,3010.2,0.003]
[1633051724015,1.71917919,3010.3,3009.9,0.006]
[1633051724216,1.71917919,3010.3,3009.7,0.006]
[1633051724817,0.63248173,3010.5,3009.7,0.006]
[1633051725015,7.27752173,3010.5,3009.7,0.006]
[1633051725215,7.11984743,3010.5,3009.7,0.006]
[1633051725617,7.11984743,3010.5,3009.7,4.98986]
[1633051725818,8.77422266,3010.5,3009.8,2.01754922]
[1633051726019,7.11984743,3010.5,3009.8,1.006]
[1633051726217,7.11984743,3010.5,3009.9,0.006]
[1633051726619,7.11984743,3010.5,3009.8,0.006]
[1633051726815,7.11984743,3010.5,3010.0,0.26347272]
[1633051727217,7.11984743,3010.5,3010.1,0.003]
[1633051728819,0.01801291,3010.4,3010.1,0.003]
[1633051729035,1.294,3010.3,3010.1,0.003]
[1633051729220,0.60417537,3010.3,3010.1,0.003]
[1633051729421,0.60417537,3010.3,3010.0,0.006]
[1633051729819,0.60417537,3010.3,3009.3,0.009]
[1633051730019,3.05310398,3010.2,3009.3,0.009]
[1633051730220,1.53942259,3009.7,3009.3,0.009]
[1633051730622,3.30373268,3010.1,3009.3,4.9935]
[1633051730824,3.61628303,3010.1,3009.3,0.009]
[1633051731019,3.32319,3009.8,3009.4,0.009]
[1633051731219,3.8992995,3009.8,3009.4,0.009]
[1633051731420,3.8992995,3009.8,3009.3,0.009]
[1633051731824,0.88515401,3010.0,3009.3,4.99334]
[1633051732020,0.47229787,3009.9,3009.4,1.0]
[1633051732221,0.56807193,3010.3,3009.4,1.27266042]
[1633051732419,0.56807193,3010.3,3009.5,0.009]
[1633051732622,1.294,3009.9,3009.5,0.009]
[1633051732822,1.65195595,3009.7,3009.5,0.009]
[1633051733022,2.25395127,3009.7,3009.5,0.009]
[1633051733221,3.03377518,3009.6,3009.5,0.009]
[1633051733422,2.25395127,3009.7,3009.5,0.009]
[1633051733828,0.8884097,3009.6,3009.5,0.009]
[1633051734224,0.90642678,3009.6,3009.5,0.009]
[1633051734622,0.90642678,3009.6,3009.1,0.009]
[1633051734822,1.78490637,3009.2,3009.1,0.009]
[1633051735223,3.02286608,3009.5,3009.1,0.009]
[1633051735423,0.63489085,3009.5,3009.1,0.009]
[1633051735822,3.32365,3009.4,3009.1,0.009]
[1633051736024,6.64739,3009.4,3009.1,0.009]
[1633051736425,7.27193237,3009.4,3009.1,0.009]
[1633051737223,2.02418465,3009.3,3009.1,0.009]
[1633051737826,2.02418465,3009.3,3009.2,0.26374708]
[1633051738224,2.02418465,3009.3,3009.2,0.27274708]
[1633051738425,7.27193237,3009.4,3009.2,0.27274708]
[1633051738826,7.27193237,3009.4,3009.3,0.009]
[1633051739428,9.22066333,3009.4,3009.3,0.009]
[1633051739828,5.91494189,3009.4,3009.3,0.009]
[1633051740026,5.91494189,3009.4,3009.1,0.009]
[1633051740226,3.96621093,3009.4,3009.1,0.009]
[1633051741235,0.01801856,3009.4,3009.2,0.2]
[1633051741437,0.01801856,3009.4,3009.2,1.7332]
[1633051741630,0.01801856,3009.4,3009.3,0.009]
[1633051741831,0.01801856,3009.4,3009.3,0.209]
[1633051742230,0.01801856,3009.4,3009.3,3.80617734]
[1633051742438,0.01801856,3009.4,3009.3,4.80617734]
[1633051743030,0.01801856,3009.4,3009.3,5.37635698]
[1633051743233,18.52401,3010.9,3009.4,10.81370375]
[1633051743234,3.44553874,3010.6,3009.4,10.81370375]
[1633051743438,6.64481,3010.9,3009.9,3.3761415]
[1633051743439,3.32271,3010.9,3009.9,3.3761415]
[1633051743634,3.32271,3010.9,3010.0,0.2]
[1633051743835,3.93902765,3010.9,3010.0,1.206]
[1633051744037,3.32271,3010.9,3010.4,4.98236]
[1633051744232,3.32271,3010.9,3010.5,0.2]
[1633051744430,3.32271,3010.9,3010.5,0.203]
[1633051745231,0.01801047,3010.8,3010.5,0.203]
[1633051748536,0.01801047,3010.8,3010.6,4.98246]
[1633051748738,3.36483497,3011.0,3010.6,5.24163204]
[1633051749136,0.49508587,3011.0,3010.6,5.24163204]
[1633051749337,0.026371,3011.1,3010.6,5.24163204]
[1633051749537,0.003,3011.5,3010.6,5.49447004]
[1633051749741,0.003,3011.5,3010.7,1.0]
[1633051749937,0.003,3011.5,3010.8,0.2]
[1633051750337,0.003,3011.5,3010.9,0.85122487]
[1633051750538,0.003,3011.5,3011.0,3.5207399]
[1633051750736,0.01800776,3011.4,3011.1,4.98126]
[1633051750937,0.01800776,3011.4,3011.1,5.98126]
[1633051751138,0.01800776,3011.4,3011.1,1.0]
[1633051751340,1.320371,3011.3,3011.0,0.2]
[1633051751540,0.026371,3011.3,3010.6,0.2]
[1633051751738,0.91441251,3011.0,3010.6,0.2]
[1633051751940,5.89780251,3011.0,3010.6,0.2]
[1633051752139,6.47870593,3011.0,3010.6,0.2]
[1633051752342,6.47870593,3011.0,3010.3,0.003]
[1633051752343,4.81741593,3011.0,3010.3,0.003]
[1633051752538,0.026371,3010.8,3010.3,0.003]
[1633051752939,3.32291,3010.7,3010.3,0.003]
[1633051753139,4.98427,3010.5,3010.3,0.003]
[1633051753340,0.48339405,3010.6,3010.3,0.003]
[1633051753539,3.77482118,3010.7,3010.3,0.003]
[1633051753739,5.07479497,3011.4,3010.4,0.95221236]
[1633051753740,0.01800776,3011.4,3010.4,0.95221236]
[1633051753940,0.01800776,3011.4,3010.5,0.2]